Cogmind - Beta 13 @@@ ROGUE MODE // 2024.05.18 @ 09:31:33 Player: Reflectatory Result: Destroyed by Y-54 Guardian with Flak Gun Performance ------------- Evolutions (3) 1500 Regions Visited (5) 1000 Robots Destroyed (24) 120 Value Destroyed (560) 560 Prototype IDs (2) 40 Alien Tech Used (0) 0 Bonus (0) 0 TOTAL SCORE: 3220 Bonus ------- None Cogmind --------- Core Integrity 0/700 Matter 184/300 Energy 100/100 System Corruption 6% Temperature Cool (19) Movement Core (50) Location -7/Storage Parts ------- > --- POWER (2) -------- (None) > --- PROPULSION (4) --- (None) > --- UTILITY (3) ------ (None) > --- WEAPON (4) ------- (None) > --- INVENTORY (5) ---- Armored Huge Wheel VTOL Module Peak State ------------ > --- POWER ------------ Light Nuclear Core > --- PROPULSION ------- Armored Huge Wheel Armored Huge Wheel > --- UTILITY ---------- Advanced Visual Processing Unit Kinecellerator System Shield > --- WEAPON ----------- Light Assault Rifle Heavy Assault Rifle Mini Grenade Launcher Mini Grenade Launcher > --- INVENTORY -------- Armored Huge Wheel Improved EM Shotgun [Rating: 37] Favorites ----------- Power Ion Engine Engine Ion Engine Power Core Light Nuclear Core Propulsion Armored Huge Wheel Wheel Armored Huge Wheel Hover Unit Aerolev Unit Flight Unit Flight Unit Utility Sensor Array Device Sensor Array Processor Advanced Visual Processing Unit Hackware System Shield Protection Medium Armor Plating Weapon Mini Grenade Launcher Energy Gun Improved EM Shotgun Ballistic Gun Light Assault Rifle Launcher Mini Grenade Launcher Build | -11 -10 -9 -8 -7 -7 ------- Run | Yrd Mat Mat Mat Fac Sto Slots Evolved 6 | . . 2 2 2 . Power 1 | . . . 1 . . Propulsion 2 | . . . . 2 . Utility 1 | . . 1 . . . Weapon 2 | . . 1 1 . . Parts Attached 25 | 5 2 1 7 8 2 Power 3 | 1 . . . 1 1 Engine 1 | 1 . . . . . Core 2 | . . . . 1 1 Reactor . | . . . . . . Propulsion 9 | 2 . . 4 3 . Treads . | . . . . . . Leg . | . . . . . . Wheel 4 | 2 . . . 2 . Hover 3 | . . . 2 1 . Flight 2 | . . . 2 . . Utility 5 | . 2 . 1 2 . Device 2 | . 1 . . 1 . Storage . | . . . . . . Processor 1 | . . . 1 . . Hackware 1 | . . . . 1 . Protection 1 | . 1 . . . . Artifact . | . . . . . . Weapon 8 | 2 . 1 2 2 1 Energy Gun 2 | . . 1 . . 1 Energy Cannon . | . . . . . . Ballistic Gun 4 | 2 . . 1 1 . Ballistic Cannon . | . . . . . . Launcher 2 | . . . 1 1 . Special Weapon . | . . . . . . Impact Weapon . | . . . . . . Slashing Weapon . | . . . . . . Piercing Weapon . | . . . . . . Special Melee Weapon . | . . . . . . Unidentified Prototypes 2 | . . 1 1 . . Parts Lost 16 | . 1 . 2 1 12 Power 2 | . . . . . 2 Propulsion 4 | . 1 . . 1 2 Utility 4 | . . . 1 . 3 Weapon 6 | . . . 1 . 5 Highest Loss Streak 10 | . 1 . 1 1 10 To Critical Strikes 1 | . . . . . 1 Average Slot Usage (%) 67 | . 86 69 73 68 35 Engine 4 | . 14 11 9 . . Core 3 | . . . . 6 3 Wheel 8 | . 21 11 1 10 8 Hover 1 | . . . 6 . . Flight 2 | . . . 3 2 . Device 7 | . 9 11 9 7 2 Processor 5 | . . . 7 7 5 Hackware 3 | . . . . 6 3 Protection 3 | . 12 11 6 . . Energy Gun 2 | . . 3 7 . . Ballistic Gun 14 | . 28 22 15 12 4 Launcher 8 | . . . 7 12 6 Naked Turns 22 | . . . . . 22 Heaviest Build 21 | 8 16 19 21 15 15 Greatest Support 56 | 20 20 10 10 56 56 Greatest Overweight (x) 2 | . 1 1 2 1 1 Average Overweight (x) . | . . 1 . . . Largest Inventory Capacity 5 | 5 5 5 5 5 5 Average Capacity 5 | 5 5 5 5 5 5 Most Carried 5 | 2 3 4 5 5 4 Average Carried 3 | . 2 3 3 3 3 Final Capacity 5 | 5 5 5 5 5 5 Final Carried 5 | . 3 3 5 3 3 Class Distribution -------------------- 38% | Mutant 37% | Skirmisher 8% | Gunner 7% | Bomber 5% | Tank Dominant Class ---------------- Mutant | -10/Materials Mutant | -9/Materials Skirmisher | -8/Materials Skirmisher | -7/Factory Mutant | -7/Storage Resources | -11 -10 -9 -8 -7 -7 ----------- Run | Yrd Mat Mat Mat Fac Sto Matter Collected 522 | 212 115 . 54 81 60 Remotely . | . . . . . . Salvage Created 489 | . 115 . 87 168 119 Parts 52 | . 6 . 14 20 12 Haulers Intercepted 1 | . . . . . 1 Recyclers Shooed 1 | . . . . . 1 Parts Field Recycled . | . . . . . . Retrieved Matter . | . . . . . . Parts Self-Destructed . | . . . . . . Prevented . | . . . . . . Kills | -11 -10 -9 -8 -7 -7 ------- Run | Yrd Mat Mat Mat Fac Sto Combat Hostiles Destroyed 12 | . 2 . 5 2 3 Melee 2 | . . . . . 2 Guns 6 | . 2 . 2 2 . AOE 4 | . . . 3 . 1 Classes Destroyed 10 | . 2 . 2 5 1 Worker 1 | . . . . 1 . Builder 5 | . . . . 5 . Hauler 1 | . . . . . 1 Recycler 1 | . . . . 1 . Operator 1 | . . . . 1 . Watcher 3 | . 1 . . 2 . Swarmer 7 | . . . 4 . 3 Grunt 3 | . 2 . . 1 . Sentry 1 | . . . 1 . . Programmer 1 | . . . . 1 . Best Kill Streak 8 | . 2 . 4 8 2 Combat Bots Only 4 | . 2 . 4 1 1 Max Kills in Single Turn 5 | . 1 . 3 5 2 Gunslinging . | . . . . . . Exploded 3 | . . . 3 . 1 Melee 1 | . . . . . 1 Uniques/NPCs Destroyed . | . . . . . . Combat | -11 -10 -9 -8 -7 -7 -------- Run | Yrd Mat Mat Mat Fac Sto Hostile Shots Fired 234 | . 26 . 14 15 179 Missed 67 | . 5 . 1 5 56 Damage Taken 2155 | . 300 . 174 291 1390 Core 726 | . 26 . . 26 674 Absorbed by Shields . | . . . . . . Core Remaining (%) 97 | 100 89 100 100 . . Volleys Fired 47 | . 17 . 6 14 10 Largest 4 | . 2 . 4 4 2 Hottest 118 | . 40 . 118 103 60 Shots Fired 103 | . 34 . 17 39 13 Gun 79 | . 34 . 13 25 7 Cannon . | . . . . . . Launcher 24 | . . . 4 14 6 Special . | . . . . . . Kinetic 71 | . 34 . 10 25 2 Thermal . | . . . . . . Explosive 24 | . . . 4 14 6 Electromagnetic 8 | . . . 3 . 5 Robot Hit Streak 10 | . 5 . 4 6 10 Robot Miss Streak 5 | . 5 . 3 3 2 Penetration Max . | . . . . . . Secondary Targets . | . . . . . . Shots Hit Robots 53 | . 17 . 7 21 8 Core Hits 70 | . 6 . 7 31 26 Critical Kills . | . . . . . . Critical Parts Destroyed . | . . . . . . Critical Strikes . | . . . . . . Melee Attacks . | . . . . . . Impact . | . . . . . . Slashing . | . . . . . . Piercing . | . . . . . . Sneak Attacks . | . . . . . . Combat Hostiles . | . . . . . . Follow-up Attacks . | . . . . . . Damage Inflicted 2028 | . 190 . 336 1044 458 Guns 532 | . 190 . 59 190 93 Cannons . | . . . . . . Explosions 1384 | . . . 277 849 258 Melee . | . . . . . . Ramming 112 | . . . . 5 107 Kinetic 419 | . 190 . 39 190 . Thermal . | . . . . . . Explosive 1384 | . . . 277 849 258 Electromagnetic 113 | . . . 20 . 93 Impact . | . . . . . . Slashing . | . . . . . . Piercing . | . . . . . . Highest Corruption 6 | . 1 . . 1 6 Average Corruption 1 | . 1 . . 1 2 Corruption Purged . | . . . . . . Corruption Blocked . | . . . . . . Effects 4 | . . . . 3 1 Message Errors 1 | . . . . 1 . Matter Fused 1 | . . . . 1 . Data Loss (minor) 1 | . . . . . 1 Misfires 1 | . . . . 1 . Overload Shots . | . . . . . . Overflow Damage 50 | . . . 8 42 . Projectiles . | . . . . . . Explosions 50 | . . . 8 42 . Melee . | . . . . . . Knockbacks 1 | . . . . . 1 Impact 1 | . . . . . 1 Kinetic . | . . . . . . Secondary . | . . . . . . Self-Inflicted Damage 184 | . . . 25 113 46 Shots 5 | . . . 1 4 . Rammed 35 | . . . . 1 34 Targets Rammed 35 | . . . . 1 34 Kicked . | . . . . . . Crushed . | . . . . . . Highest Temperature 80 | . 80 . 63 51 16 Average Temperature 32 | . 44 . 33 13 7 Received Heat Transfer 438 | . 171 . 27 54 186 Siege Activations . | . . . . . . Robots Corrupted . | . . . . . . Combat Hostiles . | . . . . . . Parts Fried . | . . . . . . Impact Corruptions . | . . . . . . Robots Melted . | . . . . . . Combat Hostiles . | . . . . . . Parts Melted . | . . . . . . Heat Transferred . | . . . . . . Parts Sabotaged . | . . . . . . Parts Stolen . | . . . . . . Parts Stripped . | . . . . . . Power Chain Reactions . | . . . . . . Alert | -11 -10 -9 -8 -7 -7 ------- Run | Yrd Mat Mat Mat Fac Sto Peak Influence 344 | . 62 26 204 344 168 Initial 92 | . . 26 10 92 83 Average 124 | . 32 26 92 193 126 Maximum Alert Level 1 | . . . 1 1 . Low Security (%) 83 | 100 100 100 74 76 100 Level 1 16 | . . . 25 23 . Level 2 . | . . . . . . Level 3 . | . . . . . . Level 4 . | . . . . . . Level 5 . | . . . . . . High Security . | . . . . . . Max Security . | . . . . . . Squads Dispatched 7 | . . . . 5 2 Investigation 1 | . . . . . 1 Extermination 1 | . . . . 1 . Reinforcement 5 | . . . . 4 1 Assault . | . . . . . . Garrison . | . . . . . . Intercept . | . . . . . . Searches Triggered . | . . . . . . Construction Impeded 2 | . . . . 2 . Haulers Reinforced . | . . . . . . Active Scanning Responses . | . . . . . . Cargo Convoy Interrupts . | . . . . . . Stealth | -11 -10 -9 -8 -7 -7 --------- Run | Yrd Mat Mat Mat Fac Sto Distress Signals 2 | . 1 . . . 1 Communications Jammed . | . . . . . . Distress Signals . | . . . . . . Times Spotted 32 | . 3 . 7 12 10 Peak Tracking Total 5 | . 2 . 5 4 5 Tactical Retreats 1 | . . . . . 1 Traps | -11 -10 -9 -8 -7 -7 ------- Run | Yrd Mat Mat Mat Fac Sto Traps Triggered 3 | . . . . 2 1 Indirectly . | . . . . . . Trap Hack Attempts . | . . . . . . Triggered . | . . . . . . Disarmed . | . . . . . . Reprogrammed . | . . . . . . Reused . | . . . . . . Traps Extracted . | . . . . . . Installed . | . . . . . . Triggered . | . . . . . . Machines | -11 -10 -9 -8 -7 -7 ---------- Run | Yrd Mat Mat Mat Fac Sto Machines Disabled 9 | . . . 2 5 2 Max in Single Turn 2 | . . . 2 2 2 Machines Repaired . | . . . . . . Machines Dismantled . | . . . . . . Machines Sabotaged . | . . . . . . Overloaded Fab Kills . | . . . . . . Hacking | -11 -10 -9 -8 -7 -7 --------- Run | Yrd Mat Mat Mat Fac Sto Machines Accessed 5 | . 1 . 1 3 . Terminals 2 | . . . 1 1 . Fabricators . | . . . . . . Repair Stations . | . . . . . . Recycling Units 1 | . 1 . . . . Scanalyzers 1 | . . . . 1 . Garrison Access 1 | . . . . 1 . Total Hacks 11 | . 3 . 3 5 . Successful 6 | . 1 . 3 2 . Failed 5 | . 2 . . 3 . Catastrophic 2 | . 1 . . 1 . Database Lockouts . | . . . . . . Manual . | . . . . . . Terminals 5 | . . . 3 2 . Fabricators . | . . . . . . Repair Stations . | . . . . . . Recycling Units 3 | . 3 . . . . Scanalyzers 2 | . . . . 2 . Garrison Access 1 | . . . . 1 . Terminal Hacks 4 | . . . 3 1 . Record 3 | . . . 3 . . Zone Layout 1 | . . . . 1 . Fabricator Hacks . | . . . . . . Repair Station Hacks . | . . . . . . Recycling Unit Hacks 1 | . 1 . . . . Report Inventory 1 | . 1 . . . . Scanalyzer 1 | . . . . 1 . Insert Component 1 | . . . . 1 . Garrison Access Hacks . | . . . . . . Unauthorized Hacks . | . . . . . . Terminals . | . . . . . . Fabricators . | . . . . . . Repair Stations . | . . . . . . Recycling Units . | . . . . . . Scanalyzers . | . . . . . . Garrison Access . | . . . . . . Data Cores Recovered . | . . . . . . Used . | . . . . . . Hacking Detections 4 | . 1 . 1 2 . Full Trace Events 1 | . 1 . . . . Feedback Events 1 | . 1 . . . . Corruption 1 | . 1 . . . . Feedback Blocked . | . . . . . . Robot Schematics Acquired . | . . . . . . Robots Built . | . . . . . . Authchips . | . . . . . . Time . | . . . . . . Total Robot Build Rating . | . . . . . . Part Schematics Acquired . | . . . . . . Parts Built . | . . . . . . Authchips . | . . . . . . Time . | . . . . . . Total Part Build Rating . | . . . . . . Parts Repaired . | . . . . . . Time . | . . . . . . Parts Recycled . | . . . . . . Recycled Matter . | . . . . . . Retrieved Matter . | . . . . . . Retrieved Components . | . . . . . . Parts Scanalyzed 1 | . . . . 1 . Part Schematics Acquired . | . . . . . . Parts Damaged . | . . . . . . Bothacking | -11 -10 -9 -8 -7 -7 ------------ Run | Yrd Mat Mat Mat Fac Sto Used RIF Installer . | . . . . . . Robots Hacked . | . . . . . . Non-combat . | . . . . . . Combat . | . . . . . . Robot Hacks Applied . | . . . . . . Relay Couplers Released . | . . . . . . Fabnet Peak Effective % . | . . . . . . Robots Rewired . | . . . . . . Allies Hacked . | . . . . . . Hacks Repelled . | . . . . . . Allies | -11 -10 -9 -8 -7 -7 -------- Run | Yrd Mat Mat Mat Fac Sto Total Allies 3 | . . . . 3 . Largest Group 3 | . . . . 3 . Highest-Rated Group 93 | . . . . 93 . Highest-Rated Ally 31 | . . . . 31 . Total Orders . | . . . . . . Ally Attacks 11 | . . . . 11 . Total Damage 150 | . . . . 150 . Kills 2 | . . . . 2 . Allies Corrupted . | . . . . . . Allies Melted . | . . . . . . Intel | -11 -10 -9 -8 -7 -7 ------- Run | Yrd Mat Mat Mat Fac Sto Robot Analysis Total . | . . . . . . Derelict Logs Recovered . | . . . . . . Drone Launches . | . . . . . . Drone Recoveries . | . . . . . . Exploration | -11 -10 -9 -8 -7 -7 ------------- Run | Yrd Mat Mat Mat Fac Sto Turns Passed 1243 | 32 105 124 323 517 142 Spaces Moved 1105 | 30 58 125 283 518 91 Core 26 | 4 . . . . 22 Treads . | . . . . . . Legs . | . . . . . . Wheels 628 | 26 58 125 45 305 69 Hover 106 | . . . 73 33 . Flight 345 | . . . 165 180 . Fastest Speed 37 | 50 80 95 37 37 50 Average Speed 86 | 76 88 95 77 88 88 Slowest Speed 170 | 80 95 95 170 120 100 Overloaded Moves . | . . . . . . Propulsion Burnouts . | . . . . . . Robots Hopped 1 | . . . 1 . . Cave-ins Triggered . | . . . . . . Exploration Rate (%) 16 | 3 21 15 19 19 21 Regions Visited 5 Branch Regions 1 Pre-discovered Areas . | . . . . . . Known Exits Taken . | . . . . . . Unknown Exits Taken 5 | 1 1 1 1 1 . Scrap Searched . | . . . . . . Spaces Dug . | . . . . . . Terrain Destroyed 119 | . . . 31 54 34 Melee . | . . . . . . Projectile . | . . . . . . AOE 119 | . . . 31 54 34 Terrain Rammed . | . . . . . . Walls Destroyed . | . . . . . . Machines Disabled . | . . . . . . Actions | -11 -10 -9 -8 -7 -7 --------- Run | Yrd Mat Mat Mat Fac Sto Total 1315 | 39 81 130 374 552 139 Wait 73 | . . 4 68 1 . Move 1098 | 29 57 124 280 517 91 Hop 1 | . . . 1 . . Pick Up 25 | 5 5 1 6 6 2 Fast Attach . | . . . . . . Attach 25 | 5 2 1 7 8 2 Detach 4 | . . . 4 . . Swap . | . . . . . . Drop 7 | . . . 2 5 . Fire 47 | . 17 . 6 14 10 Melee . | . . . . . . Ram 35 | . . . . 1 34 Kick . | . . . . . . Crush . | . . . . . . Escape Stasis . | . . . . . . Rewire . | . . . . . . Trap . | . . . . . . Miscellaneous . | . . . . . . Route ------- -11/Scrapyard -10/Materials -9/Materials -8/Materials -7/Factory -7/Storage History --------- Turn | Location | Event 2 | -11/Scrapyard | Met Revision 17 4 | -11/Scrapyard | Discovered new exit (range 15) 33 | -11/Scrapyard | Entered Materials 112 | -10/Materials | Discovered new exit (range 15) 138 | -10/Materials | Entered another Materials area 138 | -9/Materials | Evolved 2 slots: Utility x1, Weapon x1 259 | -9/Materials | Discovered new exit (range 4) 262 | -9/Materials | Entered another Materials area 262 | -8/Materials | Evolved 2 slots: Power x1, Weapon x1 570 | -8/Materials | Discovered new exit (range 3) 585 | -8/Materials | Entered Factory 585 | -7/Factory | Evolved 2 slots: Propulsion x2 664 | -7/Factory | Allied Derelicts emerged from ambush trap array 1097 | -7/Factory | Discovered new exit (range 5) 1102 | -7/Factory | Entered Storage 1200 | -7/Storage | Core integrity fell below 50% 1226 | -7/Storage | Core integrity fell below 20% 1239 | -7/Storage | Lost 10 parts (1p2n3u4w) 1244 | -7/Storage | Destroyed by Y-54 Guardian with Flak Gun Last Messages --------------- S-27 Virus destroyed. [Achievement: Fist Fight] Acquired 30 matter. Slammed into S-27 Virus. Broken Adv. Visual Processing Unit destroyed. System corrupted by crushing effect (+4). Slammed into S-27 Virus. Destabilizing: System corrupted (+1). Slammed into S-27 Virus. Destabilizing: Core damaged (-28). Slammed into S-27 Virus. S-27 Virus destroyed. Destabilizing: Core damaged (-7). Acquired 30 matter. Acquired Lgt. Nuclear Core. System corrupted: Component data lost. Acquired VTOL Module. Y-54 Guardian misfires. Imp. EM Shotgun destroyed. Lgt. Nuclear Core destroyed. Map ----- +----------------------------------------------------+ | ?????# ####+####???????????????????????? | | ?????# # # #########+##????????????? | | ?????# "T ?????????????? | | ?????# "" ???????????????? | | ?????# ! ########????????????????? | | ?????# #???????????????????????? | | ?????# ####### ##??????????????? | | ?????# """" #??????????????? | | ?????# = """"" !#??????????????? | | ?????# """"" #??????????????? | | ?????# T #??????????????? | | ?????# "" #??????????????? | | ?????# =%### #??????????????? | | ?????# [#?# # #??????????????? | | ?????# #?# #############??????????????? | | ?##### #?# T#?????????????????????????? | | # # #?# ##?????????????????????????? | | # #?""""??????????????????????????? | | ?# # ###???????????????????????????????? | | ?##### #?????????????????????????????????? | | ?????# #?????????????????????????????????? | | ?????# #?????????????????????????????????? | | ?????# #?????????????????????????????????? | | ?????# #????????######???????????????????? | | ?????# #????????# "!!#???????????????????? | | ?????# ##########@ !!#???????????????????? | | ?????+ =Y["!!#???????????????????? | | ?????#######+##;#T####???????????????????? | | ??????# = ###??????????????????????? | | ??????# [*#????????????????????????? | | ??????# #????????????????????????? | | ??????# #????????????????????????? | | ??????###########????????????????????????? | | | | | | | | | | | | | | | | | | | | | | | | | | | | | | | | | | | +----------------------------------------------------+ Best States ------------- Heat Dissipation 34 Energy Generation 14 Energy Capacity 250 Matter Stores 294 Matter Capacity 300 Sight Range 20 Robot Scan Range 14 Terrain Scan Density 10 Armor Coverage 225 Evasion (%) 62 Kinecelleration 30 Defensive Hacking 10 Item Schematics ----------------- None Robot Schematics ------------------ None Fabricated ------------ Nothing Alien Tech Used ----------------- None Achievements -------------- Fist Fight Challenges ------------ None Game ------ Seed HeavyBeamDerivative Manual? 0 Play Time 00:19:45 Cumulative 3.7 hours Start 2024.04.21 @ 16:06:17 End 2024.05.18 @ 09:31:33 Sessions 3 Manual Loads 0 Difficulty Rogue Special Mode None Game No. 4 Rogue 4 Adventurer 0 Explorer 0 Win Type - Total 0 Types 0/0/0/0/0/0/0/0/0 Lore% 7 Gallery% 11 Achievement% 12 Wizard Run 0 Options --------- Layout 1 ASCII 0 Keyboard 0 Movement Mouse Keybinds 0 Fullscreen 1 Font 32/SmallcapsGlow Map View 50x35 Zoom Use 0% Tactical HUD 0 Map Filters NONE Filters NONE Steam 1 RUN: b6bfcee0-ddd2-4297-8b8c-afe58249b318